fUSD/lending_fUSD_20250110
["ID","MTS","AMOUNT","RATE_DAILY","PERIOD"]
[348468340,1736543440832,-500.0,0.00011366,2]
[348468341,1736543440842,-500.0,0.00011366,2]
[348468342,1736543440852,-500.0,0.00011366,2]
[348468343,1736543440863,-500.0,0.00011366,2]
[348468345,1736543440872,-500.0,0.00011366,2]
[348468347,1736543440882,-500.0,0.00011366,2]
[348468349,1736543440892,-500.0,0.00011366,2]
[348468351,1736543440902,-500.0,0.00011366,2]
[348468353,1736543440912,-500.0,0.00011366,2]
[348468355,1736543440921,-500.0,0.00011366,2]
[348468357,1736543440931,-500.0,0.00011366,2]
[348468359,1736543440942,-500.0,0.00011366,2]
[348468361,1736543440951,-249.07246347,0.00011366,2]
[348468363,1736543440961,-63.0714112,0.00011366,2]
[348468366,1736543440973,-326.57,0.00011366,2]
[348468368,1736543440991,-110.3585888,0.00011366,2]
[348468370,1736543441002,-500.0,0.00011366,2]
[348468373,1736543441012,-500.0,0.00011366,2]
[348468375,1736543441022,-500.0,0.00011366,2]
[348468377,1736543441036,-118.41403705,0.00011366,2]
[348468379,1736543441048,-381.58596295,0.00011366,2]
[348468381,1736543441060,-500.0,0.00011366,2]
[348468383,1736543441070,-500.0,0.00011366,2]
[348468386,1736543441081,-500.0,0.00011366,2]
[348468388,1736543441091,-43.77403705,0.00011366,2]
[348468419,1736543443445,-456.22596295,0.00011366,2]
[348468420,1736543443456,-500.0,0.00011366,2]
[348468421,1736543443467,-1036.69,0.00011366,2]
[348468422,1736543443477,-500.0,0.00011366,2]
[348468423,1736543443487,-500.0,0.00011366,2]
[348468424,1736543443497,-500.0,0.00011366,2]
[348468425,1736543443507,-500.0,0.00011366,2]
[348468426,1736543443518,-975.45,0.00011366,2]
[348468427,1736543443528,-500.0,0.00011366,2]
[348468428,1736543443538,-500.0,0.00011366,2]
[348468429,1736543443547,-1460.62,0.00011366,2]
[348468430,1736543443557,-725.53,0.00011366,2]
[348468431,1736543443567,-500.0,0.00011366,2]
[348468432,1736543443578,-500.0,0.00011366,2]
[348468433,1736543443588,-500.0,0.00011366,2]
[348468434,1736543443598,-500.0,0.00011366,2]
[348468435,1736543443609,-500.0,0.00011366,2]
[348468436,1736543443619,-500.0,0.00011366,2]
[348468437,1736543443629,-1463.85,0.00011366,2]
[348468438,1736543443639,-1139.89,0.00011366,2]
[348468439,1736543443650,-604.4,0.00011366,2]
[348468440,1736543443660,-921.79,0.00011366,2]
[348468441,1736543443670,-500.0,0.00011366,2]
[348468442,1736543443680,-500.0,0.00011366,2]
[348468443,1736543443692,-500.0,0.00011366,2]
[348468444,1736543443702,-1558.4,0.00011366,2]
[348468445,1736543443713,-1321.76,0.00011366,2]
[348468446,1736543443723,-596.51,0.00011366,2]
[348468447,1736543443734,-825.06,0.00011366,2]
[348468448,1736543443745,-500.0,0.00011366,2]
[348468449,1736543443756,-1296.56,0.00011366,2]
[348468450,1736543443765,-500.0,0.00011366,2]
[348468451,1736543443775,-727.34,0.00011366,2]
[348468452,1736543443785,-500.0,0.00011366,2]
[348468453,1736543443795,-500.0,0.00011366,2]
[348468454,1736543443805,-1550.56,0.00011366,2]
[348468455,1736543443819,-500.0,0.00011366,2]
[348468456,1736543443829,-500.0,0.00011366,2]
[348468457,1736543443839,-500.0,0.00011366,2]
[348468458,1736543443850,-522.03,0.00011366,2]
[348468459,1736543443860,-856.77,0.00011366,2]
[348468460,1736543443870,-500.0,0.00011366,2]
[348468461,1736543443880,-1149.81,0.00011366,2]
[348468462,1736543443890,-500.0,0.00011366,2]
[348468463,1736543443902,-500.0,0.00011366,2]
[348468464,1736543443912,-610.99,0.00011366,2]
[348468465,1736543443922,-500.0,0.00011366,2]
[348468466,1736543443931,-500.79,0.00011366,2]
[348468467,1736543443941,-500.0,0.00011366,2]
[348468468,1736543443951,-500.0,0.00011366,2]
[348468469,1736543443960,-500.0,0.00011366,2]
[348468470,1736543443970,-500.0,0.00011366,2]
[348468471,1736543443980,-800.24,0.00011366,2]
[348468472,1736543443991,-500.0,0.00011366,2]
[348468473,1736543444002,-500.0,0.00011366,2]
[348468474,1736543444012,-490.5172157,0.00011366,2]
[348468475,1736543444022,-500.0,0.00011367,2]
[348468476,1736543444032,-500.0,0.00011367,2]
[348468477,1736543444042,-500.0,0.00011367,2]
[348468478,1736543444052,-500.0,0.00011367,2]
[348468479,1736543444062,-500.0,0.00011367,2]
[348468480,1736543444072,-2044.01,0.00011367,2]
[348468481,1736543444082,-610.59,0.00011367,2]
[348468482,1736543444092,-193037.58205281,0.00011367,2]
[348468483,1736543444102,-815.52,0.00011368,2]
[348468484,1736543444112,-602.69,0.00011368,2]
[348468485,1736543444122,-1446.96,0.00011368,2]
[348468486,1736543444132,-702.57,0.00011368,2]
[348468487,1736543444142,-1220.09,0.00011368,2]
[348468488,1736543444152,-747.94,0.00011368,2]
[348468489,1736543444162,-666.57,0.00011368,2]
[348468490,1736543444171,-620.86,0.00011368,2]
[348468491,1736543444181,-570.29,0.00011368,2]
[348468492,1736543444190,-1329.27,0.00011368,2]
[348468493,1736543444200,-631.9,0.00011368,2]
[348468494,1736543444210,-163.50908747,0.00011383,2]
[348468495,1736543444219,-500.0,0.00011439,2]
[348468496,1736543444229,-500.0,0.00011439,2]
[348468497,1736543444239,-500.0,0.00011439,2]
[348468498,1736543444249,-500.0,0.00011439,2]
[348468499,1736543444258,-500.0,0.00011439,2]
[348468500,1736543444269,-500.0,0.00011439,2]
[348468501,1736543444278,-500.0,0.00011439,2]
[348468502,1736543444288,-500.0,0.00011439,2]
[348468503,1736543444298,-500.0,0.00011439,2]
[348468504,1736543444307,-608.91054653,0.00011439,2]
[348468505,1736543444317,-500.0,0.00011439,2]
[348468506,1736543444327,-500.0,0.00011439,2]
[348468507,1736543444338,-500.68183485,0.00011439,2]
[348468508,1736543444348,-1000.0,0.0001144,2]
[348468509,1736543444358,-2015.0,0.0001147,2]
[348468510,1736543444368,-566.0,0.0001147,2]
[348468511,1736543444378,-634.0,0.0001147,2]
[348468512,1736543444388,-2201.059,0.0001147,2]
[348468513,1736543444398,-163.50908747,0.000115,2]
[348468514,1736543444408,-3896.0,0.00011504,2]
[348468515,1736543444417,-150.0,0.00011504,2]
[348468516,1736543444427,-1173.0,0.00011504,2]
[348468517,1736543444437,-2751.0,0.00011507,2]
[348468518,1736543444448,-500.0,0.00011523,2]
[348468519,1736543444459,-559.81,0.00011523,2]
[348468520,1736543444468,-1122.76,0.0001154,2]
[348468521,1736543444478,-163.50908747,0.00011616,2]
[348468522,1736543444488,-1863.4,0.00011639,2]
[348468523,1736543444499,-630.56,0.00011639,2]
[348468524,1736543444510,-500.0,0.00011639,2]
[348468525,1736543444520,-307.26936695,0.00011639,2]
[348468526,1736543444532,-500.0,0.00011639,2]
[348468527,1736543444541,-500.0,0.00011639,2]
[348468528,1736543444551,-500.0,0.00011639,2]
[348468529,1736543444562,-519.29,0.00011639,2]
[348468530,1736543444571,-500.0,0.00011639,2]
[348468531,1736543444581,-500.0,0.00011639,2]
[348468532,1736543444591,-500.0,0.0001164,2]
[348468533,1736543444600,-500.0,0.0001164,2]
[348468534,1736543444611,-806.96,0.0001164,2]
[348468535,1736543444621,-500.0,0.0001164,2]
[348468536,1736543444630,-500.0,0.0001164,2]
[348468537,1736543444640,-1088.69,0.0001164,2]
[348468538,1736543444650,-500.0,0.0001164,2]
[348468539,1736543444660,-500.0,0.0001164,2]
[348468540,1736543444670,-500.0,0.0001164,2]
[348468541,1736543444679,-500.0,0.0001164,2]
[348468542,1736543444689,-572.43,0.0001164,2]
[348468543,1736543444699,-500.0,0.0001164,2]
[348468544,1736543444708,-481.845125,0.0001164,2]
[348468545,1736543444717,-500.0,0.0001164,2]
[348468546,1736543444727,-500.0,0.0001164,2]
[348468547,1736543444736,-500.0,0.0001164,2]
[348468548,1736543444746,-500.0,0.0001164,2]
[348468549,1736543444756,-500.0,0.0001164,2]
[348468550,1736543444766,-644.374208,0.0001164,2]
[348468551,1736543444776,-500.0,0.0001164,2]
[348468552,1736543444786,-500.0,0.0001164,2]
[348468553,1736543444796,-1366.58,0.0001164,2]
[348468554,1736543444806,-500.0,0.0001164,2]
[348468555,1736543444819,-500.0,0.0001164,2]
[348468556,1736543444830,-500.0,0.0001164,2]
[348468557,1736543444841,-236.04,0.0001164,2]
[348468558,1736543444851,-500.0,0.0001164,2]
[348468559,1736543444862,-500.0,0.0001164,2]
[348468560,1736543444871,-500.0,0.0001164,2]
[348468561,1736543444881,-500.0,0.0001164,2]
[348468562,1736543444891,-500.0,0.0001164,2]
[348468563,1736543444903,-500.0,0.0001164,2]
[348468564,1736543444913,-1341.86,0.0001164,2]
[348468565,1736543444923,-500.0,0.0001164,2]
[348468566,1736543444933,-500.0,0.0001164,2]
[348468567,1736543444943,-500.0,0.0001164,2]
[348468568,1736543444953,-500.0,0.0001164,2]
[348468569,1736543444963,-500.0,0.0001164,2]
[348468570,1736543444972,-500.0,0.0001164,2]
[348468571,1736543444982,-500.0,0.0001164,2]
[348468572,1736543444992,-500.0,0.0001164,2]
[348468573,1736543445002,-500.0,0.0001164,2]
[348468574,1736543445012,-507.80838628,0.0001164,2]
[348468575,1736543445022,-539.7,0.0001164,2]
[348468576,1736543445031,-500.0,0.0001164,2]
[348468577,1736543445041,-500.0,0.0001164,2]
[348468578,1736543445051,-500.0,0.0001164,2]
[348468579,1736543445060,-500.0,0.0001164,2]
[348468580,1736543445070,-288.40564644,0.0001164,2]
[348468581,1736543445079,-500.0,0.0001164,2]
[348468582,1736543445088,-500.0,0.0001164,2]
[348468583,1736543445098,-500.0,0.0001164,2]
[348468584,1736543445109,-1036.69,0.0001164,2]
[348468585,1736543445118,-500.0,0.0001164,2]
[348468586,1736543445129,-500.0,0.0001164,2]
[348468587,1736543445138,-500.0,0.0001164,2]
[348468588,1736543445147,-975.45,0.0001164,2]
[348468589,1736543445157,-500.0,0.0001164,2]
[348468590,1736543445166,-500.0,0.0001164,2]
[348468591,1736543445175,-1460.62,0.0001164,2]
[348468592,1736543445184,-725.53,0.0001164,2]
[348468593,1736543445194,-500.0,0.0001164,2]
[348468594,1736543445203,-500.0,0.0001164,2]
[348468595,1736543445213,-500.0,0.0001164,2]
[348468596,1736543445222,-500.0,0.0001164,2]
[348468597,1736543445232,-500.0,0.0001164,2]
[348468598,1736543445241,-500.0,0.0001164,2]
[348468599,1736543445250,-1463.85,0.0001164,2]
[348468600,1736543445260,-604.4,0.0001164,2]
[348468601,1736543445269,-1139.89,0.0001164,2]
[348468602,1736543445278,-500.0,0.0001164,2]
[348468603,1736543445287,-921.79,0.0001164,2]
[348468604,1736543445296,-500.0,0.0001164,2]
[348468605,1736543445306,-500.0,0.0001164,2]
[348468606,1736543445315,-500.0,0.0001164,2]
[348468607,1736543445325,-1558.4,0.0001164,2]
[348468608,1736543445334,-1321.76,0.0001164,2]
[348468609,1736543445344,-818.74,0.0001164,2]
[348468610,1736543445353,-825.06,0.0001164,2]
[348468611,1736543445362,-596.51,0.0001164,2]
[348468612,1736543445372,-500.0,0.0001164,2]
[348468613,1736543445381,-1296.56,0.0001164,2]
[348468614,1736543445390,-500.0,0.0001164,2]
[348468615,1736543445400,-727.34,0.0001164,2]
[348468616,1736543445410,-500.0,0.0001164,2]
[348468617,1736543445419,-500.0,0.0001164,2]
[348468618,1736543445428,-1550.56,0.0001164,2]
[348468619,1736543445437,-682.2,0.0001164,2]
[348468620,1736543445447,-388.15660051,0.0001164,2]
[348468621,1736543445461,-111.84339949,0.0001164,2]
[348468622,1736543445471,-413.64900535,0.0001164,2]
[348468623,1736543445482,-86.35099465,0.0001164,2]
[348468624,1736543445491,-339.38702535,0.0001164,2]
[348468625,1736543445511,-160.61297465,0.0001164,2]
[348468626,1736543445520,-143.91702532,0.0001164,2]
[348468627,1736543445533,-378.11297468,0.0001164,2]
[348468628,1736543445543,-856.77,0.0001164,2]
[348468629,1736543445553,-500.0,0.0001164,2]
[348468630,1736543445563,-1149.81,0.0001164,2]
[348468631,1736543445572,-500.0,0.0001164,2]
[348468632,1736543445581,-500.0,0.0001164,2]
[348468633,1736543445598,-610.99,0.0001164,2]
[348468634,1736543445611,-556.51,0.0001164,2]
[348468635,1736543445626,-500.0,0.0001164,2]
[348468636,1736543445641,-500.79,0.0001164,2]
[348468637,1736543445653,-500.0,0.0001164,2]
[348468638,1736543445666,-500.0,0.0001164,2]
[348468639,1736543445678,-500.0,0.0001164,2]
[348468640,1736543445689,-800.24,0.0001164,2]
[348468641,1736543445702,-500.0,0.0001164,2]
[348468642,1736543445714,-500.0,0.00011641,2]
[348468643,1736543445726,-500.0,0.00011641,2]
[348468644,1736543445738,-500.0,0.00011641,2]
[348468645,1736543445751,-500.0,0.00011641,2]
[348468646,1736543445764,-500.0,0.00011641,2]
[348468647,1736543445776,-500.0,0.00011641,2]
[348468648,1736543445789,-2044.01,0.00011641,2]
[348468649,1736543445802,-610.59,0.00011641,2]
[348468650,1736543445815,-815.52,0.00011642,2]
[348468651,1736543445829,-602.69,0.00011642,2]
[348468652,1736543445841,-1446.96,0.00011642,2]
[348468653,1736543445853,-702.57,0.00011642,2]
[348468654,1736543445866,-1220.09,0.00011642,2]
[348468655,1736543445876,-747.94,0.00011642,2]
[348468656,1736543445887,-666.57,0.00011642,2]
[348468657,1736543445899,-570.29,0.00011642,2]
[348468658,1736543445912,-1329.27,0.00011642,2]
[348468659,1736543445924,-631.9,0.00011642,2]
[348468660,1736543445937,-183.174,0.0001168,2]
[348468661,1736543445949,-163.50908747,0.00011733,2]
[348468662,1736543445961,-500.0,0.00011797,2]
[348468663,1736543445972,-559.81,0.00011797,2]
[348468664,1736543445984,-163.50908747,0.0001185,2]
[348468665,1736543445997,-202.89195158,0.000119,2]
[348468666,1736543446010,-500.0,0.00011912,2]
[348468667,1736543446021,-500.0,0.00011912,2]
[348468668,1736543446033,-500.0,0.00011912,2]
[348468669,1736543446045,-500.0,0.00011912,2]
[348468670,1736543446057,-760.71,0.00011912,2]
[348468671,1736543446069,-500.0,0.00011912,2]
[348468672,1736543446081,-1453.44,0.00011912,2]
[348468673,1736543446093,-1863.4,0.00011913,2]
[348468674,1736543446105,-630.56,0.00011913,2]
[348468675,1736543446117,-498.53264981,0.00011913,2]
[348468676,1736543446133,-1.46735019,0.00011913,2]
[348468677,1736543446143,-500.0,0.00011913,2]
[348468678,1736543446155,-483.25762523,0.00011913,2]
[348468679,1736543446167,-500.0,0.00011913,2]
[348468680,1736543446179,-519.29,0.00011913,2]
[348468681,1736543446192,-500.0,0.00011913,2]
[348468682,1736543446205,-500.0,0.00011913,2]
[348468683,1736543446218,-500.0,0.00011914,2]
[348468684,1736543446231,-500.0,0.00011914,2]
[348468685,1736543446242,-806.96,0.00011914,2]
[348468686,1736543446253,-500.0,0.00011914,2]
[348468687,1736543446264,-500.0,0.00011914,2]
[348468688,1736543446274,-1088.69,0.00011914,2]
[348468689,1736543446285,-500.0,0.00011914,2]
[348468690,1736543446295,-500.0,0.00011914,2]
[348468691,1736543446308,-500.0,0.00011914,2]
[348468692,1736543446321,-500.0,0.00011914,2]
[348468693,1736543446335,-572.43,0.00011914,2]
[348468694,1736543446345,-500.0,0.00011914,2]
[348468695,1736543446355,-481.845125,0.00011914,2]
[348468696,1736543446365,-500.0,0.00011914,2]
[348468697,1736543446375,-500.0,0.00011914,2]
[348468698,1736543446386,-500.0,0.00011914,2]
[348468699,1736543446397,-500.0,0.00011914,2]
[348468700,1736543446408,-500.0,0.00011914,2]
[348468701,1736543446420,-644.374208,0.00011914,2]
[348468702,1736543446434,-500.0,0.00011914,2]
[348468703,1736543446447,-500.0,0.00011914,2]
[348468704,1736543446458,-1366.58,0.00011914,2]
[348468705,1736543446469,-500.0,0.00011914,2]
[348468706,1736543446480,-500.0,0.00011914,2]
[348468707,1736543446491,-500.0,0.00011914,2]
[348468708,1736543446501,-500.0,0.00011914,2]
[348468709,1736543446512,-374.2406541,0.00011914,2]
[348468710,1736543446523,-500.0,0.00011914,2]
[348468711,1736543446538,-500.0,0.00011914,2]
[348468712,1736543446549,-500.0,0.00011914,2]
[348468713,1736543446560,-500.0,0.00011914,2]
[348468714,1736543446572,-500.0,0.00011914,2]
[348468715,1736543446584,-1341.86,0.00011914,2]
[348468716,1736543446595,-500.0,0.00011914,2]
[348468717,1736543446607,-500.0,0.00011914,2]
[348468718,1736543446617,-500.0,0.00011914,2]
[348468719,1736543446628,-500.0,0.00011914,2]
[348468720,1736543446640,-500.0,0.00011914,2]
[348468721,1736543446651,-500.0,0.00011914,2]
[348468723,1736543446663,-500.0,0.00011914,2]
[348468725,1736543446674,-539.7,0.00011914,2]
[348468726,1736543446685,-500.0,0.00011914,2]
[348468727,1736543446695,-500.0,0.00011914,2]
[348468728,1736543446707,-500.0,0.00011914,2]
[348468730,1736543446718,-500.0,0.00011914,2]
[348468732,1736543446729,-500.0,0.00011914,2]
[348468734,1736543446740,-1036.69,0.00011914,2]
[348468737,1736543446752,-500.0,0.00011914,2]
[348468739,1736543446763,-500.0,0.00011914,2]
[348468741,1736543446774,-500.0,0.00011914,2]
[348468743,1736543446785,-975.45,0.00011914,2]
[348468745,1736543446796,-500.0,0.00011914,2]
[348468747,1736543446807,-500.0,0.00011914,2]
[348468750,1736543446821,-1460.62,0.00011914,2]
[348468752,1736543446832,-725.53,0.00011914,2]
[348468754,1736543446844,-500.0,0.00011914,2]
[348468756,1736543446855,-251.73329337,0.00011914,2]
[348468758,1736543446867,-539.91010078,0.00011914,2]
[348468761,1736543446878,-500.0,0.00011914,2]
[348468763,1736543446889,-500.0,0.00011914,2]
[348468765,1736543446901,-1463.85,0.00011914,2]
[348468767,1736543446912,-604.4,0.00011914,2]
[348468769,1736543446924,-1139.89,0.00011914,2]
[348468772,1736543446935,-921.79,0.00011914,2]
[348468774,1736543446946,-500.0,0.00011914,2]
[348468776,1736543446957,-500.0,0.00011914,2]
[348468778,1736543446968,-500.0,0.00011914,2]
[348468780,1736543446979,-500.0,0.00011914,2]
[348468782,1736543446991,-1558.4,0.00011914,2]
[348468785,1736543447002,-1321.76,0.00011914,2]
[348468787,1736543447013,-825.06,0.00011914,2]
[348468789,1736543447024,-596.51,0.00011914,2]
[348468791,1736543447035,-818.74,0.00011914,2]
[348468793,1736543447048,-500.0,0.00011914,2]
[348468796,1736543447059,-1296.56,0.00011914,2]
[348468798,1736543447070,-500.0,0.00011914,2]
[348468800,1736543447081,-727.34,0.00011914,2]
[348468802,1736543447092,-500.0,0.00011914,2]
[348468804,1736543447103,-500.0,0.00011914,2]
[348468807,1736543447115,-1550.56,0.00011914,2]
[348468809,1736543447126,-500.0,0.00011914,2]
[348468811,1736543447138,-500.0,0.00011914,2]
[348468813,1736543447150,-682.2,0.00011914,2]
[348468815,1736543447161,-500.0,0.00011914,2]
[348468818,1736543447172,-522.03,0.00011914,2]
[348468820,1736543447183,-856.77,0.00011914,2]
[348468822,1736543447194,-500.0,0.00011914,2]
[348468824,1736543447205,-1149.81,0.00011914,2]
[348468825,1736543447216,-500.0,0.00011914,2]
[348468827,1736543447227,-500.0,0.00011914,2]
[348468829,1736543447238,-610.99,0.00011914,2]
[348468831,1736543447250,-556.51,0.00011914,2]
[348468833,1736543447261,-500.79,0.00011914,2]
[348468836,1736543447272,-500.0,0.00011914,2]
[348468838,1736543447283,-500.0,0.00011914,2]
[348468840,1736543447294,-500.0,0.00011914,2]
[348468842,1736543447305,-800.24,0.00011914,2]
[348468844,1736543447315,-500.0,0.00011914,2]
[348468846,1736543447327,-500.0,0.00011915,2]
[348468849,1736543447338,-500.0,0.00011915,2]
[348468851,1736543447348,-500.0,0.00011915,2]
[348468853,1736543447360,-500.0,0.00011915,2]
[348468855,1736543447370,-500.0,0.00011915,2]
[348468857,1736543447382,-500.0,0.00011915,2]
[348468859,1736543447393,-2044.01,0.00011915,2]
[348468861,1736543447404,-610.59,0.00011915,2]
[348468863,1736543447415,-815.52,0.00011916,2]
[348468864,1736543447426,-602.69,0.00011916,2]
[348468865,1736543447437,-1446.96,0.00011916,2]
[348468866,1736543447447,-702.57,0.00011916,2]
[348468867,1736543447458,-1220.09,0.00011916,2]
[348468868,1736543447469,-747.94,0.00011916,2]
[348468869,1736543447480,-666.57,0.00011916,2]
[348468870,1736543447491,-570.29,0.00011916,2]
[348468871,1736543447502,-1329.27,0.00011916,2]
[348468872,1736543447513,-631.9,0.00011916,2]
[348468873,1736543447523,-1122.76,0.00011916,2]
[348468874,1736543447535,-163.50908747,0.00011967,2]
[348468875,1736543447546,-1000.0,0.00012,2]
[348468876,1736543447557,-355.2092662,0.00012053,2]
[348468877,1736543447568,-200.0,0.00012055,2]
[348468878,1736543447580,-463.29100359,0.00012071,2]
[348468879,1736543447591,-559.81,0.00012071,2]
[348468880,1736543447602,-1122.76,0.00012074,2]
[348468881,1736543447614,-1122.76,0.00012074,2]
[348468884,1736543447626,-1122.76,0.00012074,2]
[348468886,1736543447637,-1122.76,0.00012074,2]
[348468888,1736543447648,-1122.76,0.00012074,2]
[348468890,1736543447659,-1122.76,0.00012074,2]
[348468892,1736543447670,-1122.76,0.00012074,2]
[348468894,1736543447682,-1122.76,0.00012074,2]
[348468896,1736543447693,-1122.76,0.00012074,2]
[348468899,1736543447704,-1122.76,0.00012074,2]
[348468901,1736543447715,-2030.21,0.00012075,5]
[348468903,1736543447727,-150.0,0.00012099,2]
[348468905,1736543447738,-999.0,0.00012099,2]
[348468908,1736543447750,-1122.76,0.00012099,2]
[348468910,1736543447760,-1122.76,0.00012099,2]
[348468912,1736543447772,-3256.8256,0.0001211,2]
[348468914,1736543447783,-15089.0428,0.0001211,2]
[348468916,1736543447794,-1122.76,0.00012115,2]
[348468918,1736543447806,-1122.76,0.00012115,2]
[348468921,1736543447817,-221609.98375223,0.00012116,2]
[348468923,1736543447830,-173.83,0.00012136,2]
[348468925,1736543447841,-8838.732,0.00012154,2]
[348468927,1736543447852,-425.874,0.00012154,2]
[348468929,1736543447863,-3000.0,0.0001218,2]
[348468931,1736543447874,-500.0,0.00012186,2]
[348468933,1736543447884,-500.0,0.00012186,2]
[348468936,1736543447895,-500.0,0.00012186,2]
[348468938,1736543447906,-500.0,0.00012186,2]
[348468940,1736543447917,-760.71,0.00012186,2]
[348468942,1736543447927,-500.0,0.00012186,2]
[348468944,1736543447938,-1453.44,0.00012186,2]
[348468946,1736543447948,-1863.4,0.00012187,2]
[348468948,1736543447958,-630.56,0.00012187,2]
[348468950,1736543447969,-500.0,0.00012187,2]
[348468953,1736543447979,-500.0,0.00012187,2]
[348468954,1736543447992,-500.0,0.00012187,2]
[348468956,1736543448002,-519.29,0.00012187,2]
[348468959,1736543448013,-500.0,0.00012187,2]
[348468961,1736543448023,-500.0,0.00012187,2]
[348468963,1736543448034,-500.0,0.00012188,2]
[348468965,1736543448045,-500.0,0.00012188,2]
[348468967,1736543448056,-806.96,0.00012188,2]
[348468969,1736543448067,-500.0,0.00012188,2]
[348468971,1736543448078,-500.0,0.00012188,2]
[348468974,1736543448089,-1088.69,0.00012188,2]
[348468976,1736543448100,-500.0,0.00012188,2]
[348468977,1736543448111,-500.0,0.00012188,2]
[348468979,1736543448122,-500.0,0.00012188,2]
[348468982,1736543448132,-500.0,0.00012188,2]
[348468984,1736543448143,-572.43,0.00012188,2]
[348468986,1736543448154,-500.0,0.00012188,2]
[348468988,1736543448165,-481.845125,0.00012188,2]
[348468990,1736543448177,-500.0,0.00012188,2]
[348468992,1736543448187,-500.0,0.00012188,2]
[348468994,1736543448198,-500.0,0.00012188,2]
[348468996,1736543448209,-500.0,0.00012188,2]
[348468999,1736543448220,-500.0,0.00012188,2]
[348469001,1736543448230,-644.374208,0.00012188,2]
[348469003,1736543448241,-500.0,0.00012188,2]
[348469005,1736543448251,-500.0,0.00012188,2]
[348469007,1736543448261,-1366.58,0.00012188,2]
[348469009,1736543448271,-500.0,0.00012188,2]
[348469010,1736543448281,-500.0,0.00012188,2]
[348469011,1736543448291,-500.0,0.00012188,2]
[348469012,1736543448301,-500.0,0.00012188,2]
[348469013,1736543448310,-500.0,0.00012188,2]
[348469014,1736543448321,-500.0,0.00012188,2]
[348469015,1736543448331,-500.0,0.00012188,2]
[348469016,1736543448341,-500.0,0.00012188,2]
[348469017,1736543448350,-500.0,0.00012188,2]
[348469018,1736543448361,-1341.86,0.00012188,2]
[348469019,1736543448728,-500.0,0.00012188,2]
[348469020,1736543448762,-265.17948066,0.00012188,2]
[348469021,1736543448783,-500.0,0.00012188,2]
[348469022,1736543448796,-500.0,0.00012188,2]
[348469023,1736543448806,-500.0,0.00012188,2]
[348469024,1736543448816,-500.0,0.00012188,2]
[348469025,1736543448828,-500.0,0.00012188,2]
[348469026,1736543448838,-539.7,0.00012188,2]
[348469027,1736543448847,-500.0,0.00012188,2]
[348469028,1736543448857,-500.0,0.00012188,2]
[348469029,1736543448869,-500.0,0.00012188,2]
[348469030,1736543448878,-500.0,0.00012188,2]
[348469031,1736543448887,-500.0,0.00012188,2]
[348469032,1736543448896,-1036.69,0.00012188,2]
[348469033,1736543448906,-500.0,0.00012188,2]
[348469034,1736543448915,-263.9343755,0.00012188,2]
[348469035,1736543448924,-500.0,0.00012188,2]